bitfinex-derivatives/quotes_SOLF0:USTF0_20250703
["timestamp","ask_amount","ask_price","bid_price","bid_amount"]
[1751574073855,7.24381489,152.31,152.24,44.84]
[1751574074061,6.5641,152.28,152.25,6.565]
[1751574078570,6.5645,152.27,152.25,6.565]
[1751574078767,4.82888503,152.3,152.24,51.4055]
[1751574078971,4.82888503,152.28,152.24,44.84]
[1751574079569,6.5651,152.26,152.24,44.84]
[1751574084471,6.5651,152.26,152.24,51.4057]
[1751574086476,6.5651,152.26,152.24,44.84]
[1751574087182,2.3365,152.31,152.25,4.8266795]
[1751574087384,5.35868837,152.3,152.26,4.82663665]
[1751574087575,5.35868837,152.29,152.26,4.82663665]
[1751574087778,5.35868837,152.28,152.26,11.39123665]
[1751574087977,6.5638,152.29,152.26,11.39123665]
[1751574088386,6.564,152.28,152.26,11.39123665]
[1751574089590,51.31970475,152.33,152.26,4.82663665]
[1751574089785,5.35732619,152.32,152.28,4.82663665]
[1751574089986,5.35732619,152.31,152.3,6.5631]
[1751574090187,5.35732619,152.31,152.3,11.38973665]
[1751574091585,2.3098,152.34,152.3,4.82663665]
[1751574091888,5.36093113,152.33,152.3,4.82663665]
[1751574092084,6.5612,152.35,152.32,11.38853665]
[1751574092287,5.36055687,152.34,152.32,11.38853665]
[1751574092493,6.5612,152.35,152.32,11.38853665]
[1751574092690,5.3597804,152.34,152.32,11.38853665]
[1751574092891,6.5612,152.35,152.32,11.38853665]
[1751574093193,5.35956213,152.34,152.32,11.38853665]
[1751574093397,6.5612,152.35,152.32,11.38853665]
[1751574093589,5.35887811,152.34,152.32,11.38853665]
[1751574093893,6.5612,152.35,152.33,6.5618]
[1751574094192,5.35862128,152.34,152.33,6.5618]
[1751574094393,6.5612,152.35,152.33,6.5618]
[1751574096697,6.5607,152.36,152.34,6.5614]
[1751574097294,5.36107932,152.35,152.34,6.5614]
[1751574097495,2.2531,152.38,152.34,11.38803665]
[1751574097496,6.5603,152.37,152.34,11.38803665]
[1751574097692,5.39162907,152.36,152.34,11.38803665]
[1751574097897,6.5603,152.37,152.34,11.38803665]
[1751574098200,5.39161985,152.36,152.35,6.561]
[1751574098399,6.56,152.38,152.35,6.561]
[1751574098698,5.38987257,152.37,152.35,6.561]
[1751574098897,6.56,152.38,152.35,6.561]
[1751574099099,5.38987257,152.37,152.35,6.561]
[1751574099288,6.5601,152.37,152.35,6.561]
[1751574099897,51.31970475,152.41,152.34,11.38783665]
[1751574100094,5.39738661,152.4,152.34,4.82663665]
[1751574100293,5.39738661,152.39,152.34,11.38783665]
[1751574100500,6.5605,152.37,152.34,11.38783665]
[1751574101200,6.5606,152.36,152.34,6.5612]
[1751574101499,4.82663665,152.4,152.34,6.5612]
[1751574101697,5.39533065,152.39,152.34,6.5612]
[1751574101897,6.5604,152.37,152.34,6.5612]
[1751574102296,45.2,152.41,152.35,4.82663665]
[1751574102495,5.39532937,152.4,152.35,4.82663665]
[1751574102697,5.39532937,152.39,152.35,4.82663665]
[1751574102898,45.2,152.41,152.35,4.82663665]
[1751574103095,5.39350436,152.4,152.35,4.82663665]
[1751574103290,6.5599,152.38,152.36,6.5603]
[1751574103798,6.5599,152.38,152.35,11.38743665]
[1751574104301,6.5599,152.38,152.36,6.5605]
[1751574105301,6.5593,152.39,152.37,6.5601]
[1751574105503,45.2,152.41,152.37,6.5601]
[1751574105699,5.40413087,152.4,152.37,6.5601]
[1751574105905,11.96313087,152.4,152.37,6.5601]
[1751574106205,2.2266,152.42,152.37,6.5601]
[1751574106402,6.5592,152.4,152.37,6.5601]
[1751574107406,2.2266,152.42,152.36,6.5604]
[1751574107619,10.22921015,152.41,152.34,45.18]
[1751574107918,6.5604,152.37,152.34,56.56773665]
[1751574108315,6.5604,152.37,152.34,50.00663665]
[1751574109319,6.5604,152.37,152.35,6.5609]
[1751574110219,6.5604,152.37,152.34,56.56783665]
[1751574110719,6.5606,152.36,152.34,56.56783665]
[1751574111521,6.5603,152.37,152.34,56.56783665]
[1751574114514,6.5603,152.37,152.35,6.561]
[1751574115521,6.5606,152.36,152.34,51.7412]
[1751574116121,6.5603,152.37,152.35,6.561]
[1751574119709,6.5603,152.37,152.34,51.7411]
[1751574119910,6.5603,152.37,152.34,56.56773665]
[1751574120220,6.5603,152.37,152.35,6.5609]
[1751574120916,6.561,152.35,152.34,45.18]
[1751574121116,4.82663665,152.4,152.34,45.18]
[1751574121315,5.39498878,152.39,152.34,45.18]
[1751574121821,6.5607,152.36,152.34,51.7412]
[1751574122820,6.561,152.35,152.34,45.18]
[1751574123320,6.5608,152.36,152.34,45.18]
[1751574123821,6.5616,152.34,152.29,49.94663665]
[1751574124125,7.09683665,152.39,152.32,6.562]
[1751574124323,5.39379129,152.38,152.32,6.562]
[1751574124525,6.5616,152.34,152.32,6.562]
[1751574124722,2.2702,152.39,152.32,6.562]
[1751574124925,10.22128141,152.38,152.32,6.562]
[1751574125125,6.5612,152.35,152.32,6.562]
[1751574126926,6.5615,152.34,152.32,6.562]
[1751574127417,6.5615,152.34,152.29,45.12]
[1751574127418,6.5618,152.34,152.29,49.94663665]
[1751574127625,4.82663665,152.38,152.31,4.82663665]
[1751574127824,5.39948555,152.37,152.31,4.82663665]
[1751574128024,6.5612,152.35,152.32,6.562]
[1751574128229,4.82663665,152.38,152.32,6.562]
[1751574128527,5.39992908,152.37,152.32,6.562]
[1751574128727,5.39992908,152.36,152.32,6.562]
[1751574128921,4.82663665,152.38,152.32,6.562]
[1751574129226,5.392259,152.37,152.32,6.562]
[1751574129428,5.392259,152.36,152.32,6.562]
[1751574129720,6.5615,152.34,152.32,6.562]
[1751574136535,5.41644658,152.33,152.32,6.562]
[1751574138536,11.97824658,152.33,152.31,11.38923665]
[1751574138736,6.5618,152.33,152.31,11.38923665]
[1751574143241,6.5618,152.33,152.3,6.563]
[1751574143442,8.39400475,152.37,152.3,11.38963665]
[1751574143634,5.41304808,152.36,152.3,11.38963665]
[1751574143839,5.41304808,152.35,152.3,11.38963665]
[1751574144039,6.5623,152.33,152.3,11.38963665]
[1751574144242,6.5623,152.33,152.31,6.5626]
[1751574145744,6.5623,152.33,152.32,3.08741345]
[1751574145942,11.96805688,152.33,152.32,3.08741345]
[1751574146340,5.40575688,152.33,152.32,9.64971345]
[1751574146541,6.5616,152.34,152.32,9.64971345]
[1751574146743,6.5616,152.34,152.33,3.08741345]
[1751574146941,11.96712034,152.34,152.33,3.08741345]
[1751574147640,11.96712034,152.34,152.32,9.64971345]
[1751574147848,6.5616,152.34,152.32,9.64971345]
[1751574150048,6.5616,152.34,152.33,3.08741345]
[1751574150247,11.96783625,152.34,152.33,3.08741345]
[1751574155651,5.40623625,152.34,152.33,9.64921345]
[1751574157949,11.96763625,152.34,152.33,3.08741345]
[1751574158649,5.40623625,152.34,152.33,3.08741345]
[1751574158848,5.40623625,152.34,152.33,9.64921345]
[1751574163143,11.96763625,152.34,152.29,45.12]
[1751574163349,5.40623625,152.33,152.31,3.08741345]
[1751574163552,5.40623625,152.32,152.3,3.08741345]
[1751574163850,5.40623625,152.31,152.3,6.5629]
[1751574164053,5.40623625,152.31,152.3,9.65031345]
[1751574164647,5.40623625,152.31,152.29,48.20741345]
[1751574164847,5.40623625,152.3,152.29,48.20741345]
[1751574165147,11.96933625,152.3,152.29,45.12]
[1751574165950,11.96933625,152.3,152.29,48.20741345]
[1751574172656,5.40623625,152.3,152.29,54.77101345]
[1751574176362,11.96933625,152.3,152.29,48.20741345]
[1751574179765,5.40623625,152.3,152.29,54.77101345]
[1751574180264,6.5625,152.32,152.3,6.5631]
[1751574180563,6.5625,152.32,152.31,3.08741345]
[1751574180763,11.94349481,152.32,152.31,3.08741345]
[1751574180962,5.38099481,152.32,152.31,9.65011345]
[1751574183461,6.5628,152.31,152.29,51.6834]
[1751574183862,6.5628,152.31,152.29,54.77081345]
[1751574184374,6.5625,152.32,152.3,9.65031345]
[1751574192179,6.5627,152.31,152.3,3.08741345]
[1751574193378,6.5625,152.32,152.3,9.65051345]
[1751574193875,6.5625,152.32,152.3,6.5631]
[1751574194082,6.5627,152.31,152.3,3.08741345]
[1751574194285,6.5627,152.31,152.29,54.77081345]
[1751574195885,6.5627,152.31,152.3,6.5631]
[1751574196085,11.94953855,152.31,152.3,6.5631]
[1751574196587,11.94953855,152.31,152.3,9.65051345]
[1751574197088,11.94953855,152.31,152.3,3.08741345]
[1751574198886,11.94953855,152.31,152.29,51.6833]
[1751574199084,3.08741345,152.31,152.25,566.94]
[1751574199287,5.38891719,152.3,152.26,44.84]
[1751574199487,6.5644,152.27,152.26,44.84]
[1751574200489,11.95359555,152.27,152.26,44.84]
[1751574202494,6.5649,152.26,152.24,192.10741345]
[1751574203195,3.08741345,152.25,152.22,47.92741345]
[1751574203391,3.08741345,152.25,152.22,233.88]
[1751574203591,3.08741345,152.25,152.22,44.84]
[1751574203794,6.5661,152.23,152.22,44.84]
[1751574204694,9.65351345,152.23,152.22,44.84]
[1751574204896,6.5667,152.22,152.2,189.06]
[1751574205191,3.08741345,152.24,152.2,198.71461345]
[1751574205392,6.5664,152.23,152.2,198.71461345]
[1751574205895,9.65381345,152.23,152.21,6.567]
[1751574206095,6.5664,152.23,152.21,6.567]
[1751574209196,6.5664,152.23,152.2,198.71461345]
[1751574209796,9.65381345,152.23,152.2,198.71461345]
[1751574210096,9.65381345,152.23,152.21,6.567]
[1751574213301,9.65381345,152.23,152.2,198.73471345]
[1751574219504,6.5664,152.23,152.21,6.567]
[1751574220103,6.5666,152.22,152.2,195.6472]
[1751574220301,6.5666,152.22,152.2,192.16741345]
[1751574220705,6.5666,152.22,152.2,198.73461345]
[1751574220906,6.5663,152.23,152.2,198.73461345]
[1751574221108,9.65371345,152.23,152.2,198.73461345]
[1751574223007,9.65371345,152.23,152.2,198.77461345]
[1751574223202,9.65371345,152.23,152.2,195.6872]
[1751574223402,6.5667,152.22,152.2,198.77461345]
[1751574224308,9.65371345,152.23,152.2,198.77461345]
[1751574228214,9.65371345,152.23,152.2,195.6872]
[1751574228508,9.65371345,152.23,152.2,198.77461345]
[1751574239311,9.65371345,152.23,152.21,6.567]
[1751574243514,3.08741345,152.26,152.22,3.08741345]
[1751574244018,6.5658,152.24,152.22,9.65371345]
[1751574249520,6.5658,152.24,152.22,6.5663]
[1751574249715,5.36010975,152.23,152.21,9.65421345]
[1751574249917,5.36010975,152.22,152.21,6.5668]
[1751574251124,5.36010975,152.22,152.18,44.78]
[1751574251325,3.08741345,152.23,152.19,192.16741345]
[1751574251515,5.36085369,152.22,152.19,192.16741345]
[1751574251715,9.65371345,152.23,152.2,195.647]
[1751574251925,5.36085369,152.22,152.2,195.647]
[1751574252118,9.65371345,152.23,152.2,195.647]
[1751574252318,5.36085369,152.22,152.2,195.647]
[1751574252522,9.65371345,152.23,152.2,195.647]
[1751574252724,5.36076592,152.22,152.2,195.647]
[1751574252928,9.65371345,152.23,152.21,6.567]
[1751574253127,5.36076592,152.22,152.21,6.567]
[1751574259227,6.10533823,152.28,152.21,3.08741345]
[1751574259426,8.14045097,152.3,152.21,3.08741345]
[1751574259427,2.38027996,152.27,152.22,2.1751]
[1751574259623,100.81005994,152.32,152.28,6.5636]
[1751574259823,7.75362611,152.31,152.28,198.71101345]
[1751574260029,7.75362611,152.3,152.28,198.71101345]
[1751574260225,5.35182762,152.29,152.28,198.71101345]
[1751574260624,8.43924107,152.29,152.28,189.06]
[1751574260819,10.83809751,152.29,152.28,189.06]
[1751574261025,6.5645,152.27,152.25,189.06]
[1751574262426,6.5645,152.27,152.25,192.14741345]
[1751574262626,6.5645,152.27,152.25,198.71251345]
[1751574263831,6.5645,152.27,152.25,195.6251]
[1751574267333,9.65161345,152.28,152.26,6.5648]
[1751574267638,5.36216671,152.27,152.25,192.14741345]
[1751574267838,3.08741345,152.29,152.25,192.14741345]
[1751574268039,5.36216559,152.28,152.25,192.14741345]
[1751574268240,5.36216559,152.27,152.26,6.5645]
[1751574270744,5.36216559,152.27,152.25,198.71251345]
[1751574270944,9.65151345,152.28,152.25,195.6251]
[1751574271146,5.36083899,152.27,152.25,189.06]
[1751574271446,3.08741345,152.27,152.25,189.06]
[1751574271648,9.65211345,152.27,152.25,195.6252]
[1751574272241,9.65211345,152.27,152.25,189.06]
[1751574272950,3.08741345,152.27,152.25,195.6251]
[1751574273155,9.65161345,152.28,152.25,195.6251]
[1751574274353,9.65161345,152.28,152.26,6.5648]
[1751574275354,6.5642,152.28,152.26,6.5648]
[1751574275558,9.65161345,152.28,152.26,6.5648]
[1751574278656,6.5642,152.28,152.26,6.5648]
[1751574278858,9.65161345,152.28,152.26,6.5648]
[1751574279758,5.35351345,152.3,152.27,3.08741345]
[1751574279957,3.08741345,152.32,152.28,192.06741345]
[1751574280154,11.91737486,152.31,152.29,9.65071345]
[1751574280354,6.5627,152.31,152.29,9.65071345]
[1751574280659,5.35382073,152.3,152.29,3.08741345]
[1751574281260,11.91692073,152.3,152.29,3.08741345]
[1751574281454,6.5631,152.3,152.28,198.63111345]
[1751574282661,6.5631,152.3,152.28,195.5437]
[1751574282861,6.5631,152.3,152.28,198.63111345]
[1751574286258,6.5629,152.31,152.29,6.5636]
[1751574287362,3.08741345,152.33,152.29,9.65101345]
[1751574287559,7.76751731,152.32,152.29,9.65101345]
[1751574287759,5.36982631,152.31,152.29,9.65101345]
[1751574287966,8.960191,152.32,152.29,9.65101345]
[1751574288159,5.3697874,152.31,152.29,9.65101345]
[1751574288360,6.5625,152.32,152.29,9.65101345]
[1751574288562,5.3697916,152.31,152.29,9.65101345]
[1751574288761,6.5625,152.32,152.29,9.65101345]
[1751574288956,5.3697916,152.31,152.29,9.65101345]
[1751574289160,6.5625,152.32,152.3,6.563]
[1751574289368,5.3697916,152.31,152.3,6.563]
[1751574291766,6.562,152.33,152.31,6.5627]
[1751574291965,5.36409339,152.32,152.31,9.65011345]
[1751574292662,9.64901345,152.34,152.31,9.65011345]
[1751574293063,4.4004,152.35,152.31,9.65011345]
[1751574293261,8.45071109,152.34,152.31,9.65011345]
[1751574293460,9.64921345,152.34,152.31,9.65011345]
[1751574293670,9.64921345,152.34,152.28,233.74]
[1751574293671,2.2219,152.35,152.32,3.08741345]
[1751574293866,5.36212942,152.34,152.32,3.08741345]
[1751574294169,11.17991105,152.35,152.32,6.5619]
[1751574294369,5.36212942,152.34,152.32,9.64931345]
[1751574294571,8.7831,152.35,152.32,9.64931345]
[1751574294868,5.36118297,152.34,152.33,6.5618]
[1751574295766,5.36118297,152.34,152.32,9.64951345]
[1751574295971,8.7831,152.35,152.32,9.64951345]
[1751574296173,5.3749249,152.34,152.32,9.64951345]
[1751574296374,8.7831,152.35,152.32,3.08741345]
[1751574296572,5.37456651,152.34,152.32,3.08741345]
[1751574296772,11.87051345,152.35,152.32,3.08741345]
[1751574296972,5.37456651,152.34,152.32,3.08741345]
[1751574297168,11.87051345,152.35,152.32,3.08741345]
[1751574297372,5.37456651,152.34,152.33,3.08741345]
[1751574299569,5.37456651,152.34,152.33,9.64921345]
[1751574299764,2.2219,152.35,152.33,9.64921345]
[1751574300770,11.99781345,152.36,152.34,6.5614]
[1751574300971,5.38431374,152.35,152.34,6.5614]
[1751574304574,5.38431374,152.35,152.32,3.08741345]
[1751574304780,3.08741345,152.36,152.32,3.08741345]
[1751574304981,5.38929269,152.35,152.32,3.08741345]
[1751574305274,6.5612,152.35,152.32,3.08741345]
[1751574306180,6.5616,152.34,152.32,3.08741345]
[1751574306374,3.08741345,152.35,152.32,3.08741345]
[1751574307074,6.5616,152.34,152.32,9.64941345]
[1751574309282,6.5613,152.35,152.33,6.5618]
[1751574311787,6.5615,152.34,152.32,9.64941345]
[1751574311983,3.08741345,152.36,152.32,3.08741345]
[1751574312188,5.38335181,152.35,152.32,3.08741345]
[1751574312487,6.5612,152.35,152.33,9.64901345]
[1751574313789,6.5612,152.35,152.33,6.5616]
[1751574314087,6.5612,152.35,152.33,9.64901345]
[1751574314688,9.64821345,152.36,152.34,6.5614]
[1751574314890,5.37959657,152.35,152.34,6.5614]
[1751574317190,7.78706115,152.35,152.34,6.5614]
[1751574324397,7.78706115,152.35,152.34,9.64881345]
[1751574326192,7.78706115,152.35,152.34,6.5614]
[1751574330204,12.23301797,152.35,152.34,9.64881345]
[1751574332296,7.78706115,152.35,152.34,9.64881345]
[1751574332501,7.78706115,152.35,152.34,6.5614]
[1751574332700,7.78706115,152.35,152.34,9.64881345]
[1751574339404,5.37959657,152.35,152.34,9.64881345]
[1751574339603,8.4380149,152.39,152.37,6.5601]
[1751574339801,6.86899852,152.38,152.37,6.5601]
[1751574340009,6.86899852,152.38,152.37,9.64751345]
[1751574340010,2.4175143,152.38,152.37,9.64751345]
[1751574340207,4.4507802,152.4,152.38,6.5595]
[1751574340404,2.41546155,152.39,152.38,9.64691345]
[1751574340709,2.41546155,152.39,152.38,3.08741345]
[1751574342610,6.5593,152.39,152.36,6.5604]
[1751574342909,6.5593,152.39,152.37,3.08741345]
[1751574343613,6.559,152.4,152.37,9.64741345]
[1751574343812,6.559,152.4,152.38,3.08741345]
[1751574344413,6.5593,152.39,152.38,3.08741345]
[1751574346510,3.08741345,152.42,152.38,3.08741345]
[1751574346707,2.41490063,152.41,152.4,3.08741345]
[1751574347113,6.5582,152.42,152.4,9.64601345]
[1751574347309,2.2664,152.44,152.41,3.08741345]
[1751574347612,2.4133001,152.43,152.42,3.08741345]
[1751574348211,2.4133001,152.43,152.38,44.68]
[1751574348411,3.08741345,152.45,152.41,3.08741345]
[1751574348612,5.49956919,152.44,152.4,3.08741345]
[1751574348812,2.41215574,152.43,152.4,3.08741345]
[1751574349015,3.08741345,152.44,152.4,3.08741345]
[1751574349218,2.41609841,152.43,152.4,9.64621345]
[1751574349418,3.08741345,152.44,152.4,9.64621345]
[1751574349912,6.5577,152.43,152.4,9.64621345]
[1751574350118,6.5577,152.43,152.41,3.08741345]
[1751574350309,5.49002148,152.44,152.41,3.08741345]
[1751574350509,5.49002148,152.44,152.4,6.5588]
[1751574350510,3.08741345,152.43,152.39,6.5591]
[1751574350712,3.08741345,152.43,152.4,3.08741345]
[1751574351011,6.5583,152.42,152.4,3.08741345]
[1751574351212,6.5583,152.42,152.39,9.64651345]
[1751574351615,6.5585,152.41,152.39,9.64651345]
[1751574352313,6.5582,152.42,152.4,6.5588]
[1751574353111,6.5582,152.42,152.4,9.64621345]
[1751574353312,6.5577,152.43,152.41,6.5583]
[1751574353611,6.5577,152.43,152.4,3.08741345]
[1751574353816,6.558,152.42,152.4,9.64601345]
[1751574354109,6.558,152.42,152.4,3.08741345]
[1751574355221,6.5577,152.43,152.4,9.64601345]
[1751574356520,6.5573,152.44,152.42,3.08741345]
[1751574356716,10.5989149,152.47,152.43,3.08741345]
[1751574356717,2.40267299,152.46,152.43,3.08741345]
[1751574357024,5.39207402,152.45,152.44,3.08741345]
[1751574357217,6.5565,152.46,152.44,3.08741345]
[1751574357414,6.5565,152.46,152.43,3.08741345]
[1751574358219,6.5565,152.46,152.44,3.08741345]
[1751574358623,6.5565,152.46,152.44,9.64451345]
[1751574359823,6.5565,152.46,152.43,6.5575]
[1751574360424,6.5565,152.46,152.44,6.557]
[1751574360823,6.5565,152.46,152.42,4.81677546]
[1751574361020,8.7202,152.47,152.42,4.81677546]
[1751574361224,5.40123033,152.46,152.42,4.81677546]
[1751574361418,2.2521,152.48,152.42,4.81677546]
[1751574361615,6.5565,152.46,152.43,6.5573]
[1751574361824,4.81677546,152.47,152.38,44.68]
[1751574362020,5.4002703,152.46,152.39,4.81677546]
[1751574362321,2.2521,152.48,152.43,4.81677546]
[1751574362618,6.5563,152.46,152.43,4.81677546]
[1751574362824,7.06887546,152.48,152.41,4.81677546]
[1751574363019,5.398944,152.47,152.41,4.81677546]
[1751574363219,6.5569,152.45,152.42,6.5577]
[1751574363522,6.5569,152.45,152.37,44.66]
[1751574363523,10.22068723,152.44,152.37,44.66]
[1751574363831,6.5583,152.42,152.37,44.66]
[1751574364026,4.81677546,152.44,152.37,49.47677546]
[1751574364224,5.40403191,152.43,152.22,26.2658]
[1751574364427,46.8988,152.45,152.22,26.2658]
[1751574364428,6.5596,152.39,152.34,4.81677546]
[1751574364727,2.3462,152.42,152.36,4.81677546]
[1751574364924,6.5591,152.4,152.37,6.5598]
[1751574367519,6.5594,152.39,152.37,6.5598]
[1751574367717,6.5594,152.39,152.36,11.37717546]
[1751574367922,6.5594,152.39,152.36,4.81677546]
[1751574368223,6.559,152.4,152.37,6.5599]
[1751574369029,6.5594,152.39,152.37,6.5599]
[1751574369229,6.5594,152.39,152.36,4.81677546]
[1751574370629,6.5594,152.39,152.37,6.5599]
[1751574373424,6.559,152.4,152.37,6.5599]
[1751574373629,2.39978232,152.41,152.36,11.37727546]
[1751574373833,5.37968561,152.4,152.36,11.37727546]
[1751574374032,6.5596,152.39,152.36,6.5605]
[1751574374228,2.39978232,152.41,152.34,4.81677546]
[1751574374429,5.38066196,152.4,152.34,4.81677546]
[1751574374734,2.39978232,152.41,152.35,6.5608]
[1751574375033,6.5595,152.39,152.34,4.81677546]
[1751574375537,6.5595,152.39,152.36,6.5603]
[1751574381031,8.95574816,152.4,152.37,6.56]
[1751574381231,5.38208395,152.39,152.37,6.56]
[1751574381434,6.559,152.4,152.37,6.56]
[1751574381636,5.38309678,152.39,152.37,6.56]
[1751574381842,6.559,152.4,152.37,9.6453622]
[1751574382136,11.94239678,152.39,152.37,9.6453622]
[1751574382328,6.5593,152.39,152.37,9.6453622]
[1751574383341,6.5593,152.39,152.37,3.0853622]
[1751574383827,6.5593,152.39,152.36,9.6457622]
[1751574384227,5.38655345,152.38,152.36,9.6457622]
[1751574384428,6.5593,152.39,152.36,9.6457622]
[1751574384636,5.38657272,152.38,152.36,9.6457622]
[1751574384934,6.5593,152.39,152.36,9.6457622]
[1751574385137,5.37491252,152.38,152.36,9.6457622]
[1751574385332,6.5593,152.39,152.36,9.6457622]
[1751574385533,2.39865978,152.41,152.37,44.66]
[1751574385839,3.0853622,152.42,152.38,44.66]
[1751574386032,8.95677252,152.41,152.38,9.6449622]
[1751574386232,6.5585,152.41,152.38,9.6449622]
[1751574386436,6.5585,152.41,152.38,3.0853622]
[1751574387136,9.6438622,152.41,152.38,3.0853622]
[1751574387537,9.6438622,152.41,152.39,6.5592]
[1751574388134,6.5585,152.41,152.39,6.5592]
[1751574390643,6.5585,152.41,152.39,9.6445622]
[1751574393548,6.5588,152.4,152.39,3.0853622]
[1751574393746,2.40118303,152.42,152.39,3.0853622]
[1751574394044,3.0853622,152.43,152.39,3.0853622]
[1751574394245,6.5587,152.41,152.39,3.0853622]
[1751574394446,3.0853622,152.42,152.38,9.6449622]
[1751574394647,2.40264447,152.41,152.38,9.6449622]
[1751574394841,6.5589,152.4,152.38,9.6449622]
[1751574395036,2.40264447,152.41,152.38,9.6449622]
[1751574395241,3.0853622,152.42,152.38,9.6449622]
[1751574395546,8.96136908,152.41,152.38,9.6449622]
[1751574395744,6.5586,152.41,152.38,9.6449622]
[1751574397544,5.36209005,152.4,152.38,9.6449622]
[1751574397744,6.5586,152.41,152.38,9.6449622]
[1751574397941,5.36209005,152.4,152.38,9.6449622]
[1751574398145,6.5586,152.41,152.38,9.6449622]
[1751574398347,5.3622551,152.4,152.38,9.6449622]
[1751574398651,6.5586,152.41,152.39,6.5592]
[1751574398849,5.35767488,152.4,152.39,6.5592]
[1751574399354,5.35767488,152.4,152.39,9.6445622]
[1751574399654,6.5586,152.41,152.39,9.6445622]
[1751574403158,5.36008772,152.4,152.39,9.6445622]
[1751574408966,11.91888772,152.4,152.39,3.0853622]
[1751574410466,11.91888772,152.4,152.38,3.0853622]
[1751574410467,14.32457887,152.4,152.38,3.0853622]
[1751574410659,5.36008772,152.39,152.37,44.66]
[1751574410860,6.5588,152.4,152.38,9.6448622]
[1751574411061,6.5588,152.4,152.39,3.0853622]
[1751574411261,14.32813352,152.4,152.39,3.0853622]
[1751574412066,7.76933352,152.4,152.39,9.6446622]
[1751574412270,5.36357072,152.4,152.39,9.6446622]
[1751574415266,12.68109819,152.44,152.41,6.558]
[1751574415461,7.77421592,152.43,152.42,3.0853622]
[1751574416260,7.77421592,152.43,152.42,9.6433622]
[1751574420572,10.85957812,152.43,152.33,4.5829]
[1751574420776,7.77421592,152.42,152.39,3.0853622]
[1751574420970,7.77421592,152.42,152.4,3.0853622]
[1751574420971,7.77421592,152.41,152.4,3.0853622]
[1751574421970,5.36761177,152.41,152.4,3.0853622]
[1751574422373,5.36761177,152.41,152.4,9.6441622]
[1751574422568,5.36761177,152.41,152.4,3.0853622]
[1751574424477,11.92601177,152.41,152.4,3.0853622]
[1751574425377,14.33533833,152.41,152.4,3.0853622]
[1751574426274,14.34481837,152.41,152.4,3.0853622]
[1751574427074,14.34481837,152.41,152.39,3.0853622]
[1751574427378,11.93589181,152.4,152.39,3.0853622]
[1751574432380,5.37709181,152.4,152.39,9.6446622]
[1751574433685,5.37709181,152.4,152.39,3.0853622]
[1751574437984,5.37709181,152.4,152.39,9.6446622]
[1751574440186,5.37142492,152.4,152.39,9.6446622]
[1751574443089,5.37142492,152.4,152.38,51.1995]
[1751574443289,9.22522752,152.43,152.39,3.0853622]
[1751574443486,7.78088978,152.42,152.39,3.0853622]
[1751574443788,14.33958978,152.41,152.39,3.0853622]
[1751574443990,5.37215326,152.4,152.39,3.0853622]
[1751574444790,5.37215326,152.4,152.39,9.6446622]
[1751574446893,7.78108217,152.4,152.39,9.6446622]
[1751574448394,7.78112735,152.4,152.39,9.6446622]
[1751574449492,5.37215326,152.4,152.39,9.6446622]
[1751574453395,7.78127541,152.4,152.38,233.22]
[1751574453589,3.0853622,152.41,152.38,233.22]
[1751574453590,5.37215326,152.39,152.38,233.22]
[1751574453791,5.37215326,152.39,152.38,239.7797]
[1751574454696,5.37215326,152.39,152.38,51.1997]
[1751574454997,5.37215326,152.39,152.38,54.2850622]
[1751574456996,5.37215326,152.39,152.38,54.28399176]
[1751574462013,5.37215326,152.39,152.38,9.64399176]
[1751574463416,5.37215326,152.39,152.38,6.5597]
[1751574463616,5.37215326,152.39,152.38,9.64399176]
[1751574469828,8.33366532,152.44,152.38,3.08429176]
[1751574470022,5.37971366,152.43,152.41,3.08429176]
[1751574470220,5.37971366,152.42,152.41,9.64269176]
[1751574471426,7.78817981,152.42,152.41,3.08429176]
[1751574472028,5.37971366,152.42,152.41,3.08429176]
[1751574472528,5.37971366,152.42,152.41,3.08356638]
[1751574472929,7.78816131,152.42,152.41,3.08356638]
[1751574473125,5.37971366,152.42,152.41,3.08356638]
[1751574473428,7.78766904,152.42,152.41,3.08356638]
[1751574473618,11.93781366,152.42,152.4,195.1386]
[1751574473823,6.5581,152.42,152.41,3.08356638]
[1751574474128,11.94053661,152.42,152.41,3.08356638]
[1751574474524,14.34849199,152.42,152.41,3.08356638]
[1751574474924,7.79039199,152.42,152.41,3.08356638]